Workbook

Sheet Enter Parameters and See Result
A1: TPS53625 (VR12) Design Procedure with DCR Sensing Temperature Compensation
A3: INSTRUCTIONS
A4: 1. When you open this file Click on 'Enable Macros' when the prompt appears
A5: 2. This Program has a Macro to calculate an optimized set of DCR sense component values.
A6: 3. You need the Excel Add-in "Solver" to use this Program. Go to Tools -> Add-in. Check the box "Solver" and "Analysis Tool-pak'
A7: 4. Enter the parameters in Green Cells
A8: 5. DO NOT CHANGE ANY CELLS OTHER THAN GREEN CELLS
A9: 6. The Program automatically selects the TRIPSEL selection
A10: 7. Run the Macro (By pressing CTRL+q) for correct DCR sense values. The DCR sense and some of the results will update only after running the macro. | L10: LOADLINE vs Temperature
A11: 8. Use the 'PASS' / 'FAIL' criteria as a guideline only. Judgement should be made based on actual numbers.
A12: 9. When you get an 'ERROR!' in the results, the input parameters must be adjusted to get a correct result.
A13: 10. The Bode Plot at the end is based on Linearized model and is valid only << switching frequency.
A15: Enter the parameters in Green Cells | G15: RUN MACRO (CTRL+q) for Correct DCR sense values
A16: DO NOT CHANGE any other cells | G16: CPU
G17: Rsequ | H17: ='DCR sense calculations'!$D$10/1000 -> 2.403819659 | I17: kW
A18: Processor Requirements | G18: Rseries | H18: ='DCR sense calculations'!$D$11/1000 -> 2.964393806 | I18: kW
G19: Rpar | H19: =IF(('DCR sense calculations'!$D$12/1000)<(15*RNTC_25C),'DCR sense calculations'!$D$12/1000,"OPEN") -> 13.9783377 | I19: kW
A20: Number of phases | B20: 1 | G20: Csense | H20: ='DCR sense calculations'!$D$15/0.000000001 -> 47.78046248 | I20: nF
A21: VID_PS0 (0 A) | B21: 1 | D21: V | G21: Divider Ratio | H21: =Rcs_eff/L_DCR -> 0.7325669148 | I21: If Divide Ratio is lower than 0.75, try increasing OCL and run macro again.
A22: R_Loadline (DC Loadline) | B22: 0 | D22: mV/A | G22: TEMP COMPENSATION | H22: =IF(('DCR sense calculations'!I6<0.00001)*AND('DCR sense calculations'!I14<4),"PASS","FAIL") -> PASS
A23: Maximum Current (Icc_max) | B23: 5 | D23: A | E23: 5
A24: Per phase Maximum Current | B24: =Icc_max/N_ph -> 5 | D24: A
A25: Thermal Design Current (I_TDC_total) | B25: 3 | D25: A
A26: Per phase Thermal Design Current | B26: =I_TDC/N_ph -> 3 | D26: A
A27: SetVID Fast Slew Rate (Typical) | B27: 10 | D27: mV/ms
L32: CPU-Vcore OVER-CURRENT LIMIT Vs Temperature
A33: System Requirements
A34: Vin max | B34: 10.8 | D34: V | G34: Pin 1, 30-32 | J34: SVID lines. Pull-up per Intel Spec
G35: Pin 2 (VDD) to GND | H35: 1 | I35: mF | J35: 3.3V supply by-pass capacitor
A36: Vin_min | B36: 13.2 | D36: V | G36: Pin 3 PGOOD | J36: PGOOD need external pull-up
G37: Pin 4 to GND | H37: =(IF((B91="NO"),"OPEN","100")) -> 100 | I37: kW | J37: Enable or disable OSR
G38: Pin 5,6 (CPWM1-CPWM2) | J38: PWM outputs,
A39: Freq | B39: 600 | D39: kHz | G39: Pin 7 (SKIP) | J39: Connect to driver
G40: Pin 8 | J40: VR_ON logic
A41: Boot Voltage | B41: 1 | D41: V | G41: Pin 9 (O-USR) to GND | H41: =VLOOKUP(B96,G138:H146,2,FALSE) -> 39 | I41: kW | J41: Resistor to GND sets OSR level
G42: Pin 9 (O-USR) to VREF | H42: =(H41*(1-((VLOOKUP(B89,J138:K146,2,FALSE))/1.7)))/((VLOOKUP(B89,J138:K146,2,FALSE))/1.7) -> 292.5 | I42: kW | J42: Resistor to GND sets USR level
A43: SVID Address | B43: 3 | G43: Pin 10 (F-IMAX) to GND | H43: =VLOOKUP(Freq,B138:C145,2,FALSE) -> 39 | I43: kW | J43: Selects the Switching Frequency
G44: Pin 10 (F-IMAX) to VREF | H44: =H43*(1-((Icc_max+1)/255))/((Icc_max+1)/255) -> 1618.5 | I44: kW | J44: Sets the Icc_max
G45: Pin 11 (B-RAMP) to GND | H45: =VLOOKUP(B93,K114:L120,2,FALSE) -> 100 | I45: kW | J45: Ramp setting
G46: Pin 11 (B-RAMP) to VREF | H46: =(1.7*H45-B41*H45)/B41 -> 70 | I46: kW | J46: This resistor sets the boot voltage
G47: Pin 12 (COCP-I) to GND | H47: ='Intermediate Calculations'!B18 -> 100 | I47: kW | J47: Selects the OCP level for CPU-Vcore
G48: Pin 13 (CIMON) to COCP-I | H48: =H47*((V_IMON/(10*Icc_max*Rcs_eff*0.001)-1)) -> 1090.054935 | I48: kW | J48: Sets IMON voltage for CPU-Vcore on CIMON pin
G49: Pin 14 THERM to GND | H49: =(V_THRMSD)/((VREF-V_THRMSD)/(VLOOKUP(TEMP_SD,C125:D135,2,FALSE))) -> 10.41933172 | I49: kW | J49: Sets the Thermal Shutdown Level for CPU-Vcore
G50: Pin 14 THERM to VREF | H50: 100 | I50: kW | J50: NTC for VR_HOT flag and Thermal Shutdown.
G51: Pin 15 (SLEWA) to GND | H51: =VLOOKUP(Slew_rate,H124:I131,2,FALSE) -> 39 | I51: kW | J51: This resistor sets the SLEW rate
G52: Pin 15 (SLEWA) to VREF | H52: =(1.7*H51-'Datasheet Parameters'!C35*H51)/'Datasheet Parameters'!C35 -> 43.875 | I52: kW | J52: This resistor sets the SVID Address
G53: Pin 16 (VBAT) | J53: Connect to Converter Input Voltage, VIN (VBAT)
G54: Pin 17 to Pin 22(CCSP-N) | J54: See DCR sensing for CPU
G55: Pin 23, Pin 24 | J55: Voltage sense Feedback, CPU
G56: Pin 25-26 (DROOP to COMP) | H56: 10 | I56: kW | J56: FIXED
G57: Pin 25-26 (DROOP to COMP) | H57: 5.76k + 1500pF | J57: FIXED
A58: Inductor | G58: Pin 26-27 (COMP) to VREF | H58: =H56/(Droop_Gain-1) ->  | I58: kW | J58: Sets the DROOP for CPU-Vcore
A59: Minimum Recommended Inductance | B59: =((Vin_max-Vcore_HFM)*(Vcore_HFM/(Freq*1000*Vin_max))/(0.4*Icc_max_N))*1000000 -> 0.7561728395 | D59: mH | E59: DO NOT CHANGE | G59: Pin 27 (VREF) to Pin 29 (GND) | H59: 0.33 | I59: mF | J59: VREF to Analog Ground By-pass capacitor
G60: Pin 28 (V5) to Pin 29 (GND) | H60: 1 | I60: mF | J60: V5 to Analog Ground by-pass cap
A61: Maximum Recommended Inductance | B61: =((Vin_max-Vcore_HFM)*(Vcore_HFM/(Freq*1000*Vin_max))/(0.2*Icc_max_N))*1000000 -> 1.512345679 | D61: mH
A62: Chosen Inductance, L | B62: 0.33 | D62: mH | E62: =IF(AND(L_min<=L_chosen,L_chosen<=L_max),"PASS","FAIL") -> FAIL
A63: Inductor DCR, L_DCR | B63: 3.9 | D63: mW | E63: =IF(DCR_Ploss<DCR_Pmax,"PASS","FAIL, DCR too high") -> PASS
A65: Bulk Capacitor
A66: Output Capacitor, Bulk | B66: 1000 | D66: mF
A67: Ceramic (account for DC voltage factor) | B67: 47 | D67: mF
A68: ESR of Bulk Output capacitor | B68: 4.5 | D68: mW
A69: Total No. of ceramic Capacitors | B69: 8
A70: Total No. of Bulk Capacitors | B70: 2
A71: ESL of Bulk Capacitor | B71: 1 | D71: nH
A73: DCR power loss
A74: Max. allowed DCR power loss | B74: =0.03*Vcore_HFM*I_TDC/N_ph -> 0.09 | D74: W | E74: DO NOT CHANGE
A75: DCR Power loss (TDC) | B75: =I_TDC_N^2*(1.4*L_DCR/1000) -> 0.04914 | D75: W
A78: DCR Temperature Compensation | B78: B57232V5103F360
A79: B value of DCR thermal compensation NTC | B79: 3380 | D79: K
A80: Resistance of NTC at 25C | B80: 10 | D80: kW
A81: TCR_cu | B81: 0.0039 | D81: ppm/C | E81: DO NOT CHANGE
A84: Over Current Limit (TRIPSEL)
A85: Min. Over Current Limit (OCL) Target | B85: 13 | D85: A | E85: 10
A88: Undershoot Reduction
A89: Select USR level | B89: Level 1
A91: Overshoot Reduction Enable | B91: YES
A93: RAMP Amplitude | B93: 160 | D93: mV
A95: Overshoot Reduction/Pulse-Truncation
A96: Select OSR or PT level | B96: Level 4
A98: Thermal Shutdown | B98: B57250V2104F360
A99: IMVP-7 Thermal Shutdown voltage (Voltage at which VR_HOT is active) | B99: 100 | D99: oC
A100: Resistance of Thermal Shutdown NTC at 25C | B100: 100 | D100: kW
A101: B value of Thermal shutdown NTC | B101: 4250
G102: R_sequ | H102: =H17 -> 2.403819659 | I102: kW | J102: CPU-Vcore Current sensing parts. For C_sense, use the next higher available standard value but make sure it is not too high.
G103: R_series (with NTC) | H103: =H18 -> 2.964393806 | I103: kW
A104: Current Monitor (IMON) | G104: R_NTC | H104: =RNTC_25C -> 10 | I104: kW
A105: IMON voltage at Icc_max | B105: 1.7 | D105: V | G105: R_par | H105: =H19 -> 13.9783377 | I105: kW
G106: C_sense | H106: =H20 -> 47.78046248 | I106: nF
K114: 20 | L114: 20
C115: 25 | D115: =RNTC_25C_TH -> 100 | E115: =RNTC_25C_TH_G -> 0 | K115: 60 | L115: 30
C116: 30 | D116: =D115/(EXP(B_NTC_TH*(C116-C115)/((C116+273)*(C115+273)))) -> 79.03002628 | E116: =E115/(EXP(B_NTC_TH_G*(C116-C115)/((C116+273)*(C115+273)))) -> 0 | K116: 100 | L116: 39
C117: 35 | D117: 62.9365149 | E117: 0 | K117: 120 | L117: 56
C118: 40 | D118: 50.48619739 | E118: 0 | K118: 140 | L118: 75
C119: 45 | D119: 40.78054354 | E119: 0 | K119: 160 | L119: 100
C120: 50 | D120: 33.15919177 | E120: 0 | K120: 40 | L120: 150
C121: 55 | D121: 27.13277191 | E121: 0
C122: 60 | D122: 22.33573768 | E122: 0
C123: 65 | D123: 18.49295256 | E123: 0
C124: 70 | D124: 15.39581584 | E124: 0 | H124: 2.5 | I124: 20
C125: 75 | D125: 12.88506512 | E125: 0 | H125: 5 | I125: 24
C126: 80 | D126: 10.83829045 | E126: 0 | H126: 7.5 | I126: 30
C127: 85 | D127: 9.160800809 | E127: 0 | H127: 10 | I127: 39
C128: 90 | D128: 7.778894245 | E128: 0 | H128: 12.5 | I128: 56
C129: 95 | D129: 6.634864616 | E129: 0 | H129: 15 | I129: 75
C130: 100 | D130: 5.683271847 | E130: 0 | H130: 17.5 | I130: 100
C131: 105 | D131: 4.888138044 | E131: 0 | H131: 20 | I131: >=150
C132: 110 | D132: 4.220826507 | E132: 0
C133: 115 | D133: 3.658427707 | E133: 0
C134: 120 | D134: 3.182523971 | E134: 0 | G134: YES
C135: 125 | D135: 2.778238738 | E135: 0 | G135: NO
B137: Freq | D137: Ramp | G137: OSR | J137: USR
B138: 300 | C138: 20 | D138: 20 | E138: 20 | G138: Level 1 | H138: 20 | I138: 1 | J138: Level 1 | K138: 0.2
B139: 400 | C139: 24 | D139: Dynamic | E139: 24 | G139: Level 2 | H139: 24 | I139: 2 | J139: Level 2 | K139: 0.4
B140: 500 | C140: 30 | D140: 60 | E140: 30 | G140: Level 3 | H140: 30 | J140: Level 3 | K140: 0.6
B141: 600 | C141: 39 | D141: 100 | E141: 39 | G141: Level 4 | H141: 39 | J141: Level 4 | K141: 0.8
B142: 700 | C142: 56 | D142: 120 | E142: 56 | G142: Level 5 | H142: 56 | J142: Level 5 | K142: 1
B143: 800 | C143: 75 | D143: 140 | E143: 75 | G143: Level 6 | H143: 75 | J143: Level 6 | K143: 1.2
B144: 900 | C144: 100 | D144: 160 | E144: 100 | G144: Level 7 | H144: 100 | J144: Level 7 | K144: 1.4
B145: 1000 | C145: 150 | D145: Internal | E145: 150 | G145: Level 8 | H145: 150 | J145: Level 8 | K145: 1.6

Sheet Intermediate Calculations
A1: Intermediate Calculations
B3: CPU
A4: System
A5: Dmin | B5: =Vcore_HFM/Vin_max -> 0.09259259259
A6: Iin_DC_TDC_atDmin | B6: =(Vcore_HFM*Icc_max)/(Vin_max*0.8) -> 0.5787037037 | C6: A
A8: Inductor
A9: Inductor current ripple | B9: =(((Vin_max-Vcore_HFM)*(Vcore_HFM/(Freq*1000*Vin_max)))/L_chosen)*1000000 -> 4.582865694 | C9: A | D9: Ripple doubled for DCR de-tuning
A10: Inductor Saturation Current rating | B10: =(Icc_max_N+I_ripple/2)*1.2*1.25 -> 10.93714927 | C10: A
E11: Icl_Valley*L_DCR*(IF(B_NTC>4199,0.95,0.89))
A12: Over Current Limit
A13: Min. Over Current Limit (OCL) Target in single phase | B13: =(OCL_Tar/N_ph) -> 13 | C13: A
A14: Valley current limit | B14: =OCL_N-I_ripple/2 -> 10.70856715 | C14: A
A15: DCR * Valley current | B15: =Icl_Valley*L_DCR -> 41.7634119
A16: TRIPSEL voltage target | B16: =Icl_Valley*L_DCR*0.95 -> 39.6752413 | C16: mV
A17: TRIPSEL closest match | B17: =VLOOKUP(TRIPSEL,'Datasheet Parameters'!D4:D11,1,TRUE) -> 37.9 | C17: mV
A18: TRIPSEL Setting | B18: =VLOOKUP(TRIPSEL,'Datasheet Parameters'!D4:E11,2,TRUE) -> 100 | C18: kW
A20: DROOP
A21: Gain | B21: =(Acs*Rcs_eff)/(R_LL) -> 
A24: Output capacitor
A25: Effective bulk Capacitor | B25: =Cout*nc+Ccerm*ncerm -> 2376
A26: Effective ESR | B26: =(((ESR/nc)*(Cout*nc))+((2/ncerm)*(Ccerm*ncerm)))/(Cout*nc+Ccerm*ncerm) -> 1.933501684
A27: Effective ESL | B27: =ESL/nc -> 0.5
A28: Load resistance for Bode Plot | B28: =Vcore_HFM/I_load -> 
A31: Input Capacitors
A32: RMS Current | B32: =SQRT(((Icc_max-(N_ph*Iin_DC))^2)*Dmin+(Iin_DC^2)*((1/N_ph)-Dmin)) -> 1.453917477 | C32: A
A33: Input Capacitor Current Rating | B33: 3 | C33: A
A34: Number of Input Capacitors | B34: =ROUNDUP(Irms_Cin/Irating_Cin,0) -> 1

Sheet DCR sense calculations
G2: Coming from other sheets
G3: Calculated in this sheet
C5: F | D5: =Freq*1000 -> 600000 | E5: Hz | I5: result | J5: target | L5: Vin(min) | M5: =Vin_min -> 13.2 | N5: V
C6: B:Rth | D6: =B_NTC -> 3380 | E6: K | H6: V Slope | I6: =SLOPE($K$27:$K$44,$A$27:$A$44) -> 2.001814323e-11 | J6: 0 | L6: TRIPSELmin | M6: =TRIPSEL_V -> 37.9 | N6: mV
C7: Rth25 | D7: =RNTC_25C*1000 -> 10000 | E7: ohm | H7: Rcs_eff | I7: =INTERCEPT($K$27:$K$44,$A$27:$A$44) -> 2.857010968 | J7: =Rcs_max*0.95 -> 3.362261214 | L7: OCL Target | M7: =OCL_N -> 13 | N7: A/phase
C8: LDCR | D8: =L_DCR/1000 -> 0.0039 | E8: ohm | H8: Σ Sq. Err. | I8: =SUM($M$27:$M$44) -> 0.002988165136 | L8: Vcore | M8: =Vcore_HFM -> 1 | N8: V
C9: TCR_cu | D9: =TCR_Cu -> 0.0039 | E9: 3900ppm/degC | H9: RMSE | I9: =SQRT(I8/85) -> 0.005929155417 | J9: 0.001 | L9: Ip-p | M9: =I_ripple -> 4.582865694 | N9: A
C10: Rsequ | D10: 2403.819659 | E10: ohm | L10: Ivalley | M10: =Icl_Valley -> 10.70856715 | N10: A
C11: Rseries | D11: 2964.393806 | E11: ohm | H11: Max | I11: =MAX($K$27:$K$44) -> 2.878831452 | L11: Rcs(max) | M11: =(TRIPSEL_V/Icl_Valley) -> 3.539222331 | N11: mΩ
C12: Rpar | D12: 13978.3377 | E12: ohm | H12: Min | I12: =MIN($K$27:$K$44) -> 2.831962095 | L12: Vcs_p-p | M12: =I_ripple*Rcs_eff -> 13.09329755 | N12: mV
C13: I | D13: 1 | E13: A | H13: R | I13: =ABS(I11-I12) -> 0.04686935688
C14: L | D14: =L_chosen*0.000001 -> 3.3e-07 | E14: H | H14: R% | I14: =I13/I7*100 -> 1.640503219 | L14: Rsequ_guess | M14: =D7*0.2 -> 2000
C15: Csense | D15: =D14/(D8*(I32*D10/(I32+D10))) -> 4.778046248e-08 | E15: F | L15: Rseries_guess | M15: 2000
C16: Rseqmin | D16: 1000 | L16: Rpar_guess | M16: =D7*2 -> 20000
A18: Temp | B18: B | C18: Rth | D18: R1 | E18: R2 | F18: R3 | G18: DCR | H18: V1 | I18: Rnet1 | J18: Rnet2 | K18: Vout | L18: Vapp | M18: SqrErr | O18: Loadline | P18: OCL | R18: LL Target | S18: OCL Target
A19: -40 | C19: =C20*(EXP($D$6*(A20-A19)/((A20+273)*(A19+273)))) -> 236687.5654 | D19: =$D$10 -> 2403.819659 | E19: =$D$11 -> 2964.393806 | F19: =$D$12 -> 13978.3377 | G19: =G20*(1-$D$9)^5 -> 0.003025211296 | H19: =G19*$D$13*1000 -> 3.025211296 | I19: =(E19*F19+C19*F19)/(C19+E19+F19) -> 13207.94896 | J19: =D19+I19 -> 15611.76862 | K19: =I19*H19/J19 -> 2.559404855 | L19: =A19*$I$6+$I$7 -> 2.857010967 | M19: =(K19-L19)^2 -> 0.08856939781 | O19: =R_LL*K19/Rcs_eff -> 0 | P19: =((TRIPSEL_V/K19)+I_ripple/2)*N_ph -> 17.09956292 | R19: =R_LL -> 0 | S19: =OCL_N*N_ph -> 13
A20: -35 | C20: 174510.321 | D20: 2403.819659 | E20: 2964.393806 | F20: 13978.3377 | G20: 0.003084899449 | H20: 3.084899449 | I20: 12957.75369 | J20: 15361.57335 | K20: 2.602166218 | L20: 2.857010967 | M20: 0.06494584632 | O20: 0 | P20: 16.85622112 | R20: 0 | S20: 13
A21: -30 | C21: 130290.7165 | D21: 2403.819659 | E21: 2964.393806 | F21: 13978.3377 | G21: 0.003145765263 | H21: 3.145765263 | I21: 12651.23488 | J21: 15055.05453 | K21: 2.64348529 | L21: 2.857010967 | M21: 0.04559321463 | O21: 0 | P21: 16.62856577 | R21: 0 | S21: 13
A22: -25 | C22: 98428.99958 | D22: 2403.819659 | E22: 2964.393806 | F22: 13978.3377 | G22: 0.003207831974 | H22: 3.207831974 | I22: 12284.73457 | J22: 14688.55423 | K22: 2.682862026 | L22: 2.857010967 | M22: 0.03032785383 | O22: 0 | P22: 16.4181377 | R22: 0 | S22: 13
A23: -20 | C23: 75187.65147 | D23: 2403.819659 | E23: 2964.393806 | F23: 13978.3377 | G23: 0.003271123277 | H23: 3.271123277 | I23: 11857.49636 | J23: 14261.31602 | K23: 2.719758282 | L23: 2.857010967 | M23: 0.01883829965 | O23: 0 | P23: 16.22649474 | R23: 0 | S23: 13
A24: -15 | C24: 58036.86474 | D24: 2403.819659 | E24: 2964.393806 | F24: 13978.3377 | G24: 0.003335663333 | H24: 3.335663333 | I24: 11372.37642 | J24: 13776.19608 | K24: 2.753620724 | L24: 2.857010967 | M24: 0.01068954233 | O24: 0 | P24: 16.05512937 | R24: 0 | S24: 13
A25: -10 | C25: 45241.47436 | D25: 2403.819659 | E25: 2964.393806 | F25: 13978.3377 | G25: 0.003401476779 | H25: 3.401476779 | I25: 10836.15839 | J25: 13239.97805 | K25: 2.783912557 | L25: 2.857010967 | M25: 0.005343377672 | O25: 0 | P25: 15.9053662 | R25: 0 | S25: 13
A26: -5 | C26: 35596.36452 | D26: 2403.819659 | E26: 2964.393806 | F26: 13978.3377 | G26: 0.00346858874 | H26: 3.46858874 | I26: 10259.31816 | J26: 12663.13782 | K26: 2.810153057 | L26: 2.857010968 | M26: 0.002195663772 | O26: 0 | P26: 15.77824272 | R26: 0 | S26: 13
A27: 0 | C27: 28254.58075 | D27: 2403.819659 | E27: 2964.393806 | F27: 13978.3377 | G27: 0.003537024837 | H27: 3.537024837 | I27: 9655.206189 | J27: 12059.02585 | K27: 2.831962095 | L27: 2.857010968 | M27: 0.0006274460335 | O27: 0 | P27: 15.67438033 | R27: 0 | S27: 13
A28: 5 | C28: 22614.16761 | D28: 2403.819659 | E28: 2964.393806 | F28: 13978.3377 | G28: 0.003606811195 | H28: 3.606811195 | I28: 9038.771424 | J28: 11442.59108 | K28: 2.849104868 | L28: 2.857010968 | M28: 6.250640565e-05 | O28: 0 | P28: 15.5938565 | R28: 0 | S28: 13
A29: 10 | C29: 18242.72027 | D29: 2403.819659 | E29: 2964.393806 | F29: 13978.3377 | G29: 0.003677974454 | H29: 3.677974454 | I29: 8425.078755 | J29: 10828.89841 | K29: 2.861530624 | L29: 2.857010968 | M29: 2.042729402e-05 | O29: 0 | P29: 15.53609278 | R29: 0 | S29: 13
A30: 15 | C30: 14826.47338 | D30: 2403.819659 | E30: 2964.393806 | F30: 13978.3377 | G30: 0.003750541782 | H30: 3.750541782 | I30: 7827.918591 | J30: 10231.73825 | K30: 2.869398633 | L30: 2.857010968 | M30: 0.0001534542368 | O30: 0 | P30: 15.49977538 | R30: 0 | S30: 13
A31: 20 | C31: =C32*(EXP($D$6*(A32-A31)/((A32+273)*(A31+273)))) -> 12135.55279 | D31: 2403.819659 | E31: 2964.393806 | F31: 13978.3377 | G31: 0.003824540881 | H31: 3.824540881 | I31: 7258.755387 | J31: 9662.575045 | K31: 2.873085755 | L31: 2.857010968 | M31: 0.000258398783 | O31: 0 | P31: 15.48282469 | R31: 0 | S31: 13
A32: 25 | C32: =D7 -> 10000 | D32: 2403.819659 | E32: 2964.393806 | F32: 13978.3377 | G32: =$D$8 -> 0.0039 | H32: 3.9 | I32: 6726.143363 | J32: 9129.963022 | K32: 2.873172548 | L32: 2.857010968 | M32: 0.0002611966546 | O32: 0 | P32: 15.48242621 | R32: 0 | S32: 13
A33: 30 | C33: =C32/(EXP($D$6*(A33-A32)/((A33+273)*(A32+273)))) -> 8293.057553 | D33: 2403.819659 | E33: 2964.393806 | F33: 13978.3377 | G33: =G32*(1+$D$9)^5 -> 0.003976645508 | H33: 3.976645508 | I33: 6235.606756 | J33: 8639.426415 | K33: 2.870190266 | L33: 2.857010968 | M33: 0.0001736938766 | O33: 0 | P33: 15.49613236 | R33: 0 | S33: 13
A34: 35 | C34: =C33/(EXP($D$6*(A34-A33)/((A34+273)*(A33+273)))) -> 6919.40088 | D34: 2403.819659 | E34: 2964.393806 | F34: 13978.3377 | G34: 0.004054797307 | H34: 4.054797307 | I34: 5789.885734 | J34: 8193.705393 | K34: 2.865225433 | L34: 2.857010968 | M34: 6.747742576e-05 | O34: 0 | P34: 15.51901333 | R34: 0 | S34: 13
A35: 40 | C35: 5806.774531 | D35: 2403.819659 | E35: 2964.393806 | F35: 13978.3377 | G35: 0.004134484999 | H35: 4.134484999 | I35: 5389.407262 | J35: 7793.226921 | K35: 2.85920373 | L35: 2.857010968 | M35: 4.808201178e-06 | O35: 0 | P35: 15.54687163 | R35: 0 | S35: 13
A36: 45 | C36: 4899.994249 | D36: 2403.819659 | E36: 2964.393806 | F36: 13978.3377 | G36: 0.004215738769 | H36: 4.215738769 | I36: 5032.845867 | J36: 7436.665526 | K36: 2.853047964 | L36: 2.857010969 | M36: 1.570540374e-05 | O36: 0 | P36: 15.5754717 | R36: 0 | S36: 13
A37: 50 | C37: 4156.608588 | D37: 2403.819659 | E37: 2964.393806 | F37: 13978.3377 | G37: 0.004298589394 | H37: 4.298589394 | I37: 4717.672486 | J37: 7121.492145 | K37: 2.847624697 | L37: 2.857010969 | M37: 8.810208857e-05 | O37: 0 | P37: 15.60077099 | R37: 0 | S37: 13
A38: 55 | C38: 3543.735024 | D38: 2403.819659 | E38: 2964.393806 | F38: 13978.3377 | G38: 0.004383068258 | H38: 4.383068258 | I38: 4440.63023 | J38: 6844.449889 | K38: 2.843703398 | L38: 2.857010969 | M38: 0.0001770914403 | O38: 0 | P38: 15.61912378 | R38: 0 | S38: 13
A39: 60 | C39: 3035.734375 | D39: 2403.819659 | E39: 2964.393806 | F39: 13978.3377 | G39: 0.004469207358 | H39: 4.469207358 | I39: 4198.111029 | J39: 6601.930688 | K39: 2.841930579 | L39: 2.857010969 | M39: 0.0002274181554 | O39: 0 | P39: 15.6274377 | R39: 0 | S39: 13
A40: 65 | C40: 2612.488496 | D40: 2403.819659 | E40: 2964.393806 | F40: 13978.3377 | G40: 0.004557039325 | H40: 4.557039325 | I40: 3986.431455 | J40: 6390.251114 | K40: 2.842818628 | L40: 2.857010969 | M40: 0.0002014225322 | O40: 0 | P40: 15.62327176 | R40: 0 | S40: 13
A41: 70 | C41: 2258.115507 | D41: 2403.819659 | E41: 2964.393806 | F41: 13978.3377 | G41: 0.004646597426 | H41: 4.646597426 | I41: 3802.019712 | J41: 6205.83937 | K41: 2.846747063 | L41: 2.857010969 | M41: 0.0001053477579 | O41: 0 | P41: 15.60487417 | R41: 0 | S41: 13
A42: 75 | C42: 1960.004741 | D42: 2403.819659 | E42: 2964.393806 | F42: 13978.3377 | G42: 0.004737915585 | H42: 4.737915585 | I42: 3641.531308 | J42: 6045.350967 | K42: 2.853972918 | L42: 2.857010969 | M42: 9.229757171e-06 | O42: 0 | P42: 15.57116643 | R42: 0 | S42: 13
A43: 80 | C43: 1708.087008 | D43: 2403.819659 | E43: 2964.393806 | F43: 13978.3377 | G43: 0.004831028391 | H43: 4.831028391 | I43: 3501.91144 | J43: 5905.731098 | K43: 2.864646782 | L43: 2.857010969 | M43: 5.830564311e-05 | O43: 0 | P43: 15.52168526 | R43: 0 | S43: 13
A44: 85 | C44: 1494.279268 | D44: 2403.819659 | E44: 2964.393806 | F44: 13978.3377 | G44: 0.004925971116 | H44: 4.925971116 | I44: 3380.41989 | J44: 5784.239548 | K44: 2.878831452 | L44: 2.857010969 | M44: 0.000476133447 | O44: 0 | P44: 15.45649674 | R44: 0 | S44: 13
A45: 90 | C45: 1312.059421 | D45: 2403.819659 | E45: 2964.393806 | F45: 13978.3377 | G45: 0.00502277972 | H45: 5.02277972 | I45: 3274.631169 | J45: 5678.450828 | K45: 2.896520817 | L45: 2.857010969 | M45: 0.001561028022 | O45: 0 | P45: 15.37609628 | R45: 0 | S45: 13
A46: 95 | C46: 1156.138789 | D46: 2403.819659 | E46: 2964.393806 | F46: 13978.3377 | G46: 0.005121490875 | H46: 5.121490875 | I46: 3182.419409 | J46: 5586.239068 | K46: 2.917657438 | L46: 2.85701097 | M46: 0.003677994095 | O46: 0 | P46: 15.28130599 | R46: 0 | S46: 13
A47: 100 | C47: 1022.208428 | D47: 2403.819659 | E47: 2964.393806 | F47: 13978.3377 | G47: 0.00522214197 | H47: 5.22214197 | I47: 3101.934797 | J47: 5505.754455 | K47: 2.942147896 | L47: 2.85701097 | M47: 0.007248296306 | O47: 0 | P47: 15.1731782 | R47: 0 | S47: 13
A48: 105 | C48: 906.7415277 | D48: 2403.819659 | E48: 2964.393806 | F48: 13978.3377 | G48: 0.00532477113 | H48: 5.32477113 | I48: 3031.576163 | J48: 5435.395822 | K48: 2.969875564 | L48: 2.85701097 | M48: 0.01273841662 | O48: 0 | P48: 15.05291028 | R48: 0 | S48: 13
A49: 110 | C49: 806.8386957 | D49: 2403.819659 | E49: 2964.393806 | F49: 13978.3377 | G49: 0.005429417229 | H49: 5.429417229 | I49: 2969.962701 | J49: 5373.78236 | K49: 3.00071078 | L49: 2.85701097 | M49: 0.02064963557 | O49: 0 | P49: 14.92177371 | R49: 0 | S49: 13
A50: 115 | C50: 720.1061984 | D50: 2403.819659 | E50: 2964.393806 | F50: 13978.3377 | G50: 0.005536119907 | H50: 5.536119907 | I50: 2915.906616 | J50: 5319.726275 | K50: 3.034518663 | L50: 2.85701097 | M50: 0.03150898106 | O50: 0 | P50: 14.7810578 | R50: 0 | S50: 13
A51: 120 | C51: 644.5596682 | D51: 2403.819659 | E51: 2964.393806 | F51: 13978.3377 | G51: 0.005644919579 | H51: 5.644919579 | I51: 2868.387741 | J51: 5272.2074 | K51: 3.071164864 | L51: 2.85701097 | M51: 0.04586189013 | O51: 0 | P51: 14.63202727 | R51: 0 | S51: 13
A52: 125 | C52: 578.547588 | D52: 2403.819659 | E52: 2964.393806 | F52: 13978.3377 | G52: 0.005755857458 | H52: 5.755857458 | I52: 2826.530585 | J52: 5230.350244 | K52: 3.110519639 | L52: 2.85701097 | M52: 0.06426664495 | O52: 0 | P52: 14.47589217 | R52: 0 | S52: 13

Sheet Datasheet Parameters
A1: Datasheet Values | C1: Typ | D1: Min | E1: R-OCP
C2: mV | D2: mV | E2: kohm
A4: V_OCP | B4: Valley current limit OCP voltage set | C4: 7 | D4: 5.1 | E4: 20
C5: 10 | D5: 8.1 | E5: 24
C6: 14 | D6: 12.1 | E6: 30
C7: 19 | D7: =0.9*C7 -> 17.1 | E7: 39
C8: 25 | D8: 23.1 | E8: 56
C9: 32 | D9: 29.7 | E9: 75
C10: 40 | D10: 37.9 | E10: 100
C11: 49 | D11: 46.8 | E11: 150
A14: Acs | B14: Current Sense Amplifier Gain | C14: 12 | D14: V/V
A15: VREF | B15: Reference Voltage | C15: 1.7 | D15: V
A16: V_THRMSD | B16: Voltage at Thermal Shutdown due to THERM pin. | C16: 1.1 | D16: V
B24: SVID Address | C24: SLEWA Voltage
B25: 0 | C25: 0.2
B26: 1 | C26: 0.4
B27: 2 | C27: 0.6
B28: 3 | C28: 0.8
B29: 4 | C29: 1
B30: 5 | C30: 1.2
B31: 6 | C31: 1.4
B32: 7 | C32: 1.6
B35: ='Enter Parameters and See Result'!B43:C43 -> 3 | C35: =VLOOKUP(B35,B25:C32,2,FALSE) -> 0.8
